[Event "Titled Tuesday Blitz January 10 Late 2023"]
[White "Gorodetzky, David"]
[Black "Adewumi, Tanitoluwa"]
[WhiteFideId "2813416"]
[BlackFideId "30966396"]
[WhiteElo "2485"]
[BlackElo "2283"]
[Result "1/2-1/2"]
[Round "02"]
[TimeControl "180+2"]
[Date "2023.01.10"]
[WhiteClock "0:00:04"]
[BlackClock "0:00:07"]

1. e4 {[%clk 0:00:00]}  c5 {[%clk 0:00:00]} 2. Nf3 {[%clk 0:03:00]}  e6 {[%clk 0:02:59]} 3. c3 {[%clk 0:02:59]}  Nf6 {[%clk 0:02:58]} 4. e5 {[%clk 0:02:55]}  Nd5 {[%clk 0:02:57]} 5. d4 {[%clk 0:02:55]}  cxd4 {[%clk 0:02:57]} 6. cxd4 {[%clk 0:02:55]}  b6 {[%clk 0:02:58]} 7. Nc3 {[%clk 0:02:56]}  Bb7 {[%clk 0:02:58]} 8. Bd3 {[%clk 0:02:52]}  Nxc3 {[%clk 0:02:49]} 9. bxc3 {[%clk 0:02:51]}  d6 {[%clk 0:02:45]} 10. O-O {[%clk 0:02:51]}  Nd7 {[%clk 0:02:45]} 11. Qe2 {[%clk 0:02:45]}  Be7 {[%clk 0:02:43]} 12. exd6 {[%clk 0:02:28]}  Bxd6 {[%clk 0:02:39]} 13. Ng5 {[%clk 0:02:27]}  Nf6 {[%clk 0:02:38]} 14. Bb5+ {[%clk 0:02:26]}  Kf8 {[%clk 0:02:14]} 15. Bd3 {[%clk 0:02:26]}  Qc7 {[%clk 0:02:05]} 16. f4 {[%clk 0:02:16]}  Rc8 {[%clk 0:01:58]} 17. c4 {[%clk 0:02:08]}  Bb4 {[%clk 0:01:48]} 18. Bb2 {[%clk 0:02:06]}  Rd8 {[%clk 0:01:39]} 19. f5 {[%clk 0:02:04]}  exf5 {[%clk 0:01:32]} 20. Rxf5 {[%clk 0:02:03]}  h6 {[%clk 0:01:15]} 21. Nf3 {[%clk 0:02:02]}  Ng4 {[%clk 0:01:07]} 22. g3 {[%clk 0:01:53]}  Re8 {[%clk 0:00:22]} 23. Qc2 {[%clk 0:01:33]}  Ne3 {[%clk 0:00:15]} 24. Qb3 {[%clk 0:00:33]}  a5 {[%clk 0:00:12]} 25. Rf4 {[%clk 0:00:33]}  g5 {[%clk 0:00:06]} 26. Rf6 {[%clk 0:00:31]}  Ng4 {[%clk 0:00:02]} 27. Rf5 {[%clk 0:00:28]}  Bxf3 {[%clk 0:00:02]} 28. Rxf3 {[%clk 0:00:26]}  Qd7 {[%clk 0:00:01]} 29. Raf1 {[%clk 0:00:25]}  Rg8 {[%clk 0:00:02]} 30. c5 {[%clk 0:00:25]}  Re7 {[%clk 0:00:02]} 31. c6 {[%clk 0:00:23]}  Qc7 {[%clk 0:00:02]} 32. Bc4 {[%clk 0:00:23]}  Rg7 {[%clk 0:00:02]} 33. d5 {[%clk 0:00:20]}  Ne5 {[%clk 0:00:03]} 34. Rf5 {[%clk 0:00:20]}  Bc5+ {[%clk 0:00:03]} 35. Kh1 {[%clk 0:00:16]}  Ng4 {[%clk 0:00:02]} 36. Bxg7+ {[%clk 0:00:16]}  Kxg7 {[%clk 0:00:03]} 37. d6 {[%clk 0:00:14]}  Qxc6+ {[%clk 0:00:03]} 38. Bd5 {[%clk 0:00:14]}  Qxd6 {[%clk 0:00:04]} 39. Rxf7+ {[%clk 0:00:13]}  Rxf7 {[%clk 0:00:04]} 40. Rxf7+ {[%clk 0:00:13]}  Kg6 {[%clk 0:00:02]} 41. Qd3+ {[%clk 0:00:14]}  Kh5 {[%clk 0:00:03]} 42. Qf3 {[%clk 0:00:13]}  Qe5 {[%clk 0:00:03]} 43. Bc4 {[%clk 0:00:11]}  Qe1+ {[%clk 0:00:02]} 44. Bf1 {[%clk 0:00:07]}  Qe3 {[%clk 0:00:02]} 45. Qxe3 {[%clk 0:00:07]}  Nxe3 {[%clk 0:00:01]} 46. Bd3 {[%clk 0:00:06]}  g4 {[%clk 0:00:02]} 47. a4 {[%clk 0:00:06]}  Kg5 {[%clk 0:00:02]} 48. Rd7 {[%clk 0:00:04]}  h5 {[%clk 0:00:01]} 49. Rf7 {[%clk 0:00:03]}  h4 {[%clk 0:00:02]} 50. gxh4+ {[%clk 0:00:03]}  Kxh4 {[%clk 0:00:02]} 51. Rg7 {[%clk 0:00:03]}  g3 {[%clk 0:00:02]} 52. hxg3+ {[%clk 0:00:04]}  Kh5 {[%clk 0:00:02]} 53. g4+ {[%clk 0:00:04]}  Kh4 {[%clk 0:00:03]} 54. g5 {[%clk 0:00:04]}  Kg3 {[%clk 0:00:03]} 55. Rf7 {[%clk 0:00:04]}  Ng4 {[%clk 0:00:03]} 56. Be2 {[%clk 0:00:04]}  Nf2+ {[%clk 0:00:03]} 57. Kg1 {[%clk 0:00:04]}  Ne4+ {[%clk 0:00:03]} 58. Kf1 {[%clk 0:00:04]}  Nxg5 {[%clk 0:00:03]} 59. Rg7 {[%clk 0:00:05]}  Kf4 {[%clk 0:00:03]} 60. Ke1 {[%clk 0:00:06]}  Ne4 {[%clk 0:00:03]} 61. Bd3 {[%clk 0:00:05]}  Bb4+ {[%clk 0:00:04]} 62. Kf1 {[%clk 0:00:05]}  Ke3 {[%clk 0:00:03]} 63. Bxe4 {[%clk 0:00:04]}  Kxe4 {[%clk 0:00:02]} 64. Ke2 {[%clk 0:00:04]}  Kd4 {[%clk 0:00:03]} 65. Kd1 {[%clk 0:00:04]}  Kc3 {[%clk 0:00:04]} 66. Rg3+ {[%clk 0:00:04]}  Kb2 {[%clk 0:00:04]} 67. Rd3 {[%clk 0:00:05]}  Ka2 {[%clk 0:00:05]} 68. Ke2 {[%clk 0:00:05]}  Kb2 {[%clk 0:00:05]} 69. Ke3 {[%clk 0:00:06]}  Bc3 {[%clk 0:00:06]} 70. Ke4 {[%clk 0:00:06]}  Kb3 {[%clk 0:00:06]} 71. Kd5 {[%clk 0:00:06]}  Kb4 {[%clk 0:00:07]} 72. Kc6 {[%clk 0:00:06]}  Bb2 {[%clk 0:00:07]} 73. Rd2 {[%clk 0:00:05]}  Bc3 {[%clk 0:00:06]} 74. Rc2 {[%clk 0:00:05]}  Kb3 {[%clk 0:00:06]} 75. Rc1 {[%clk 0:00:05]}  Bd4 {[%clk 0:00:07]} 76. Kb5 {[%clk 0:00:04]}  Bc5 {[%clk 0:00:07]} 77. Rc4 {[%clk 0:00:03]}  Ka3 {[%clk 0:00:07]} 78. Rf4 {[%clk 0:00:03]}  Kb3 {[%clk 0:00:07]} 79. Rf3+ {[%clk 0:00:03]}  Kb2 {[%clk 0:00:07]} 80. Kc4 {[%clk 0:00:04]}  Ka2 {[%clk 0:00:07]} 81. Rb3 {[%clk 0:00:05]}  Bb4 {[%clk 0:00:07]} 82. Rd3 {[%clk 0:00:05]}  Bc5 {[%clk 0:00:07]} 83. Kb5 {[%clk 0:00:03]}  Kb2 {[%clk 0:00:07]} 84. Kc4 {[%clk 0:00:03]}  Ka2 {[%clk 0:00:07]} 85. Rg3 {[%clk 0:00:03]}  Kb2 {[%clk 0:00:07]} 86. Rb3+ {[%clk 0:00:04]}  Ka2 {[%clk 0:00:07]} 87. Rc3 {[%clk 0:00:05]}  Kb2 {[%clk 0:00:07]} 88. Rd3 {[%clk 0:00:04]}  Ka2 {[%clk 0:00:07]} 1/2-1/2


[Site "https://www.chess.com"]

[Event "Titled Tuesday Blitz January 10 Late 2023"]
[White "Abdrlauf, Elham"]
[Black "Andreev, Eduard"]
[WhiteFideId "1533533"]
[BlackFideId "14103400"]
[WhiteElo "2518"]
[BlackElo "2413"]
[Result "1-0"]
[Round "02"]
[TimeControl "180+2"]
[Date "2023.01.10"]
[WhiteClock "0:00:07"]
[BlackClock "0:00:14"]

1. e4 {[%clk 0:00:00]}  c6 {[%clk 0:00:00]} 2. d4 {[%clk 0:03:00]}  d5 {[%clk 0:03:00]} 3. Nc3 {[%clk 0:03:00]}  dxe4 {[%clk 0:03:00]} 4. Nxe4 {[%clk 0:03:01]}  Nf6 {[%clk 0:03:00]} 5. Nxf6+ {[%clk 0:03:02]}  exf6 {[%clk 0:03:01]} 6. Bd3 {[%clk 0:03:02]}  Qxd4 {[%clk 0:03:02]} 7. Nf3 {[%clk 0:03:02]}  Qd8 {[%clk 0:02:59]} 8. O-O {[%clk 0:03:02]}  Be6 {[%clk 0:02:40]} 9. Re1 {[%clk 0:03:02]}  Be7 {[%clk 0:02:33]} 10. Nd4 {[%clk 0:03:02]}  Qxd4 {[%clk 0:02:32]} 11. Rxe6 {[%clk 0:03:02]}  Qd8 {[%clk 0:02:02]} 12. Re1 {[%clk 0:03:01]}  O-O {[%clk 0:02:00]} 13. Qg4 {[%clk 0:02:29]}  Re8 {[%clk 0:01:58]} 14. Bf4 {[%clk 0:02:02]}  Bf8 {[%clk 0:01:42]} 15. Rad1 {[%clk 0:00:57]}  Rxe1+ {[%clk 0:01:26]} 16. Rxe1 {[%clk 0:00:52]}  Nd7 {[%clk 0:01:23]} 17. Re3 {[%clk 0:00:53]}  g6 {[%clk 0:01:20]} 18. h4 {[%clk 0:00:50]}  Nc5 {[%clk 0:00:44]} 19. h5 {[%clk 0:00:50]}  Nxd3 {[%clk 0:00:38]} 20. Rxd3 {[%clk 0:00:41]}  Qa5 {[%clk 0:00:38]} 21. Bd2 {[%clk 0:00:42]}  Qxa2 {[%clk 0:00:30]} 22. Bc3 {[%clk 0:00:22]}  Bg7 {[%clk 0:00:16]} 23. Rd7 {[%clk 0:00:22]}  Qe6 {[%clk 0:00:12]} 24. Qxe6 {[%clk 0:00:12]}  fxe6 {[%clk 0:00:08]} 25. h6 {[%clk 0:00:10]}  Bh8 {[%clk 0:00:09]} 26. Rxb7 {[%clk 0:00:04]}  f5 {[%clk 0:00:07]} 27. Bxh8 {[%clk 0:00:03]}  Kxh8 {[%clk 0:00:06]} 28. f4 {[%clk 0:00:03]}  a5 {[%clk 0:00:07]} 29. Rc7 {[%clk 0:00:03]}  Kg8 {[%clk 0:00:06]} 30. Rxc6 {[%clk 0:00:03]}  a4 {[%clk 0:00:03]} 31. Rxe6 {[%clk 0:00:02]}  Kf7 {[%clk 0:00:03]} 32. Rc6 {[%clk 0:00:02]}  a3 {[%clk 0:00:04]} 33. bxa3 {[%clk 0:00:01]}  Rxa3 {[%clk 0:00:04]} 34. Rc7+ {[%clk 0:00:01]}  Kf6 {[%clk 0:00:05]} 35. Rxh7 {[%clk 0:00:02]}  Rc3 {[%clk 0:00:06]} 36. Rd7 {[%clk 0:00:02]}  Rxc2 {[%clk 0:00:06]} 37. Rd8 {[%clk 0:00:01]}  Rc8 {[%clk 0:00:06]} 38. Rxc8 {[%clk 0:00:02]}  g5 {[%clk 0:00:07]} 39. Rc6+ {[%clk 0:00:01]}  Kf7 {[%clk 0:00:08]} 40. fxg5 {[%clk 0:00:02]}  Kg8 {[%clk 0:00:08]} 41. Rf6 {[%clk 0:00:03]}  Kh7 {[%clk 0:00:09]} 42. Rxf5 {[%clk 0:00:03]}  Kg6 {[%clk 0:00:10]} 43. Re5 {[%clk 0:00:04]}  Kh7 {[%clk 0:00:11]} 44. Kh2 {[%clk 0:00:05]}  Kg6 {[%clk 0:00:11]} 45. Kg3 {[%clk 0:00:05]}  Kh5 {[%clk 0:00:12]} 46. Kf4 {[%clk 0:00:06]}  Kg6 {[%clk 0:00:13]} 47. Kg4 {[%clk 0:00:06]}  Kh7 {[%clk 0:00:14]} 48. Re7+ {[%clk 0:00:07]}  Kg6 {[%clk 0:00:14]} 49. Rg7# {[%clk 0:00:07]} 1-0


[Site "https://www.chess.com"]

[Event "Titled Tuesday Blitz January 10 Late 2023"]
[White "Mendez Fortes, Eduardo Jesus"]
[Black "Mikaelyan, Arman"]
[WhiteFideId "3502376"]
[BlackFideId "13304852"]
[WhiteElo "2250"]
[BlackElo "2523"]
[Result "1-0"]
[Round "02"]
[TimeControl "180+2"]
[Date "2023.01.10"]
[WhiteClock "0:00:09"]
[BlackClock "0:00:27"]

1. e4 {[%clk 0:00:00]}  c5 {[%clk 0:00:00]} 2. Nf3 {[%clk 0:03:00]}  Nc6 {[%clk 0:03:00]} 3. d4 {[%clk 0:02:56]}  cxd4 {[%clk 0:03:00]} 4. Nxd4 {[%clk 0:02:54]}  Qb6 {[%clk 0:03:01]} 5. Nb3 {[%clk 0:02:54]}  Nf6 {[%clk 0:03:01]} 6. Nc3 {[%clk 0:02:54]}  e6 {[%clk 0:03:01]} 7. Qe2 {[%clk 0:02:54]}  Bb4 {[%clk 0:03:01]} 8. Bd2 {[%clk 0:02:54]}  O-O {[%clk 0:02:58]} 9. a3 {[%clk 0:02:54]}  Bxc3 {[%clk 0:02:52]} 10. Bxc3 {[%clk 0:02:53]}  e5 {[%clk 0:02:48]} 11. O-O-O {[%clk 0:02:54]}  d6 {[%clk 0:02:48]} 12. Rxd6 {[%clk 0:02:49]}  Nd4 {[%clk 0:02:40]} 13. Bxd4 {[%clk 0:02:34]}  Qxd6 {[%clk 0:02:28]} 14. Bc5 {[%clk 0:02:33]}  Qc6 {[%clk 0:02:25]} 15. Bxf8 {[%clk 0:02:33]}  Kxf8 {[%clk 0:02:16]} 16. f3 {[%clk 0:02:33]}  Be6 {[%clk 0:02:17]} 17. Qb5 {[%clk 0:02:28]}  Rc8 {[%clk 0:02:17]} 18. Qxc6 {[%clk 0:02:19]}  Rxc6 {[%clk 0:02:16]} 19. Na5 {[%clk 0:02:14]}  Rc7 {[%clk 0:02:17]} 20. b3 {[%clk 0:02:13]}  Nd7 {[%clk 0:02:14]} 21. Nc4 {[%clk 0:02:03]}  b5 {[%clk 0:02:07]} 22. Ne3 {[%clk 0:01:49]}  Bxb3 {[%clk 0:01:57]} 23. Bxb5 {[%clk 0:01:48]}  Nb6 {[%clk 0:01:40]} 24. Rd1 {[%clk 0:01:46]}  g6 {[%clk 0:01:40]} 25. Kb2 {[%clk 0:01:39]}  Ba4 {[%clk 0:01:39]} 26. Bd3 {[%clk 0:01:32]}  Ke7 {[%clk 0:01:39]} 27. Rd2 {[%clk 0:01:26]}  Ke6 {[%clk 0:01:31]} 28. c4 {[%clk 0:01:21]}  Rb7 {[%clk 0:01:29]} 29. Kc3 {[%clk 0:01:17]}  Nd7 {[%clk 0:01:26]} 30. Bc2 {[%clk 0:01:08]}  Nc5 {[%clk 0:01:17]} 31. Rd5 {[%clk 0:01:05]}  Bxc2 {[%clk 0:01:13]} 32. Nxc2 {[%clk 0:00:49]}  Rb3+ {[%clk 0:01:13]} 33. Kd2 {[%clk 0:00:44]}  Nd7 {[%clk 0:01:05]} 34. Ra5 {[%clk 0:00:44]}  Nb6 {[%clk 0:01:02]} 35. Ra6 {[%clk 0:00:40]}  Kd7 {[%clk 0:01:00]} 36. Rxa7+ {[%clk 0:00:24]}  Kc6 {[%clk 0:00:54]} 37. Ne3 {[%clk 0:00:24]}  Rb2+ {[%clk 0:00:51]} 38. Kc3 {[%clk 0:00:20]}  Re2 {[%clk 0:00:47]} 39. Nd5 {[%clk 0:00:14]}  Nd7 {[%clk 0:00:47]} 40. Nb4+ {[%clk 0:00:14]}  Kd6 {[%clk 0:00:42]} 41. Ra6+ {[%clk 0:00:11]}  Kc7 {[%clk 0:00:42]} 42. Ra7+ {[%clk 0:00:09]}  Kd6 {[%clk 0:00:42]} 43. Nd3 {[%clk 0:00:09]}  Rxg2 {[%clk 0:00:41]} 44. a4 {[%clk 0:00:09]}  Rxh2 {[%clk 0:00:38]} 45. a5 {[%clk 0:00:09]}  Ra2 {[%clk 0:00:36]} 46. a6 {[%clk 0:00:10]}  h5 {[%clk 0:00:31]} 47. Ra8 {[%clk 0:00:10]}  Nb6 {[%clk 0:00:31]} 48. c5+ {[%clk 0:00:09]}  Kc7 {[%clk 0:00:29]} 49. cxb6+ {[%clk 0:00:07]}  Kxb6 {[%clk 0:00:30]} 50. Nxe5 {[%clk 0:00:07]}  h4 {[%clk 0:00:30]} 51. Rh8 {[%clk 0:00:06]}  g5 {[%clk 0:00:27]} 52. Nxf7 {[%clk 0:00:06]}  Ra3+ {[%clk 0:00:25]} 53. Kd4 {[%clk 0:00:06]}  Rxf3 {[%clk 0:00:26]} 54. Rh6+ {[%clk 0:00:05]}  Ka7 {[%clk 0:00:20]} 55. Nxg5 {[%clk 0:00:06]}  Rf4 {[%clk 0:00:20]} 56. Kd5 {[%clk 0:00:06]}  Rg4 {[%clk 0:00:20]} 57. Nf3 {[%clk 0:00:05]}  Rg8 {[%clk 0:00:20]} 58. Rxh4 {[%clk 0:00:04]}  Rd8+ {[%clk 0:00:20]} 59. Ke5 {[%clk 0:00:03]}  Re8+ {[%clk 0:00:21]} 60. Kf4 {[%clk 0:00:04]}  Rd8 {[%clk 0:00:22]} 61. e5 {[%clk 0:00:04]}  Kxa6 {[%clk 0:00:22]} 62. Ke4 {[%clk 0:00:04]}  Kb5 {[%clk 0:00:23]} 63. Nd4+ {[%clk 0:00:05]}  Kc4 {[%clk 0:00:23]} 64. Kf5 {[%clk 0:00:06]}  Kd5 {[%clk 0:00:23]} 65. Ne6 {[%clk 0:00:05]}  Rd7 {[%clk 0:00:22]} 66. Rd4+ {[%clk 0:00:04]}  Kc6 {[%clk 0:00:21]} 67. Rxd7 {[%clk 0:00:05]}  Kxd7 {[%clk 0:00:22]} 68. Kf6 {[%clk 0:00:05]}  Ke8 {[%clk 0:00:23]} 69. Nf4 {[%clk 0:00:06]}  Kf8 {[%clk 0:00:23]} 70. e6 {[%clk 0:00:06]}  Ke8 {[%clk 0:00:23]} 71. Nd5 {[%clk 0:00:07]}  Kf8 {[%clk 0:00:24]} 72. e7+ {[%clk 0:00:08]}  Ke8 {[%clk 0:00:24]} 73. Nc7+ {[%clk 0:00:08]}  Kd7 {[%clk 0:00:24]} 74. e8=Q+ {[%clk 0:00:09]}  Kd6 {[%clk 0:00:25]} 75. Qe6+ {[%clk 0:00:09]}  Kc5 {[%clk 0:00:26]} 76. Qd5+ {[%clk 0:00:09]}  Kb6 {[%clk 0:00:26]} 77. Qb5+ {[%clk 0:00:09]}  Ka7 {[%clk 0:00:27]} 78. Ne8 {[%clk 0:00:09]}  Ka8 {[%clk 0:00:27]} 79. Nd6 {[%clk 0:00:09]} 1-0


[Site "https://www.chess.com"]

[Event "Titled Tuesday Blitz January 10 Late 2023"]
[White "Fernandez Guillen, Ernesto J."]
[Black "Martinez, Marcel"]
[WhiteFideId "3512428"]
[BlackFideId "2016249"]
[WhiteElo "2477"]
[BlackElo "2402"]
[Result "1-0"]
[Round "02"]
[TimeControl "180+2"]
[Date "2023.01.10"]
[WhiteClock "0:01:41"]
[BlackClock "0:00:20"]

1. e4 {[%clk 0:00:00]}  e5 {[%clk 0:00:00]} 2. Nf3 {[%clk 0:03:00]}  Nc6 {[%clk 0:02:59]} 3. Bc4 {[%clk 0:03:00]}  Bc5 {[%clk 0:02:59]} 4. d4 {[%clk 0:03:00]}  exd4 {[%clk 0:02:57]} 5. O-O {[%clk 0:03:01]}  d6 {[%clk 0:02:56]} 6. c3 {[%clk 0:03:01]}  dxc3 {[%clk 0:02:51]} 7. Qb3 {[%clk 0:03:01]}  Qd7 {[%clk 0:02:38]} 8. Bg5 {[%clk 0:03:01]}  h6 {[%clk 0:02:23]} 9. Bh4 {[%clk 0:02:14]}  Nd8 {[%clk 0:02:16]} 10. Nxc3 {[%clk 0:02:13]}  Ne7 {[%clk 0:00:43]} 11. Rad1 {[%clk 0:01:53]}  O-O {[%clk 0:00:42]} 12. Ne5 {[%clk 0:01:51]}  dxe5 {[%clk 0:00:40]} 13. Rxd7 {[%clk 0:01:50]}  Bxd7 {[%clk 0:00:23]} 14. Rd1 {[%clk 0:01:51]}  Be6 {[%clk 0:00:23]} 15. Na4 {[%clk 0:01:46]}  Bd4 {[%clk 0:00:20]} 16. Bxe7 {[%clk 0:01:41]} 1-0


[Site "https://www.chess.com"]

[Event "Titled Tuesday Blitz January 10 Late 2023"]
[White "Sielecki, Christof"]
[Black "Boruchovsky, Avital"]
[WhiteFideId "4620437"]
[BlackFideId "2800055"]
[WhiteElo "2419"]
[BlackElo "2539"]
[Result "0-1"]
[Round "02"]
[TimeControl "180+2"]
[Date "2023.01.10"]
[WhiteClock "0:00:20"]
[BlackClock "0:00:40"]

1. e4 {[%clk 0:00:00]}  e5 {[%clk 0:00:00]} 2. Nf3 {[%clk 0:02:55]}  Nc6 {[%clk 0:02:59]} 3. Bb5 {[%clk 0:02:55]}  a6 {[%clk 0:02:59]} 4. Ba4 {[%clk 0:02:55]}  Nf6 {[%clk 0:03:00]} 5. d3 {[%clk 0:02:55]}  d6 {[%clk 0:03:00]} 6. c3 {[%clk 0:02:55]}  g6 {[%clk 0:02:52]} 7. O-O {[%clk 0:02:55]}  Bg7 {[%clk 0:02:52]} 8. Re1 {[%clk 0:02:53]}  O-O {[%clk 0:02:53]} 9. Nbd2 {[%clk 0:02:54]}  b5 {[%clk 0:02:53]} 10. Bc2 {[%clk 0:02:54]}  d5 {[%clk 0:02:51]} 11. a4 {[%clk 0:02:51]}  Be6 {[%clk 0:02:50]} 12. b4 {[%clk 0:02:47]}  h6 {[%clk 0:02:37]} 13. axb5 {[%clk 0:02:16]}  axb5 {[%clk 0:02:34]} 14. Rxa8 {[%clk 0:01:53]}  Qxa8 {[%clk 0:02:35]} 15. Nb3 {[%clk 0:01:53]}  Nd7 {[%clk 0:02:35]} 16. Be3 {[%clk 0:01:53]}  f5 {[%clk 0:02:24]} 17. Nc5 {[%clk 0:01:40]}  Nxc5 {[%clk 0:02:14]} 18. Bxc5 {[%clk 0:01:34]}  Rd8 {[%clk 0:02:13]} 19. Bb3 {[%clk 0:01:35]}  Qc8 {[%clk 0:02:00]} 20. exf5 {[%clk 0:01:27]}  gxf5 {[%clk 0:01:58]} 21. Nd2 {[%clk 0:01:15]}  Qd7 {[%clk 0:01:57]} 22. Nf1 {[%clk 0:01:01]}  f4 {[%clk 0:01:52]} 23. Nd2 {[%clk 0:01:00]}  Qf7 {[%clk 0:01:50]} 24. Qc2 {[%clk 0:00:57]}  Qg6 {[%clk 0:01:26]} 25. Kh1 {[%clk 0:00:45]}  Kh7 {[%clk 0:01:19]} 26. Nf3 {[%clk 0:00:42]}  Bf6 {[%clk 0:01:18]} 27. Qe2 {[%clk 0:00:34]}  Bf5 {[%clk 0:01:18]} 28. Bc2 {[%clk 0:00:25]}  Rg8 {[%clk 0:01:13]} 29. Rg1 {[%clk 0:00:23]}  e4 {[%clk 0:01:09]} 30. dxe4 {[%clk 0:00:23]}  dxe4 {[%clk 0:01:03]} 31. Nd4 {[%clk 0:00:23]}  Nxd4 {[%clk 0:00:58]} 32. Bxd4 {[%clk 0:00:20]}  f3 {[%clk 0:00:53]} 33. Qf1 {[%clk 0:00:20]}  Bxd4 {[%clk 0:00:49]} 34. cxd4 {[%clk 0:00:19]}  e3 {[%clk 0:00:40]} 35. Bxf5 {[%clk 0:00:20]}  Qxf5 {[%clk 0:00:39]} 36. fxe3 {[%clk 0:00:20]}  fxg2+ {[%clk 0:00:40]} 0-1


[Site "https://www.chess.com"]

[Event "Titled Tuesday Blitz January 10 Late 2023"]
[White "ArchibaldCerveza29"]
[Black "Talibov, Shiroghlan"]
[BlackFideId "13429078"]
[WhiteElo "2536"]
[BlackElo "2359"]
[Result "0-1"]
[Round "02"]
[TimeControl "180+2"]
[Date "2023.01.10"]
[WhiteClock "0:00:11"]
[BlackClock "0:01:56"]

1. d4 {[%clk 0:00:00]}  Nf6 {[%clk 0:00:00]} 2. Nf3 {[%clk 0:03:00]}  e6 {[%clk 0:02:59]} 3. g3 {[%clk 0:03:00]}  d5 {[%clk 0:02:59]} 4. Bg2 {[%clk 0:02:59]}  Nbd7 {[%clk 0:02:50]} 5. O-O {[%clk 0:02:59]}  Nb6 {[%clk 0:02:48]} 6. b3 {[%clk 0:02:59]}  Be7 {[%clk 0:02:47]} 7. Bb2 {[%clk 0:02:58]}  O-O {[%clk 0:02:46]} 8. Ne5 {[%clk 0:02:59]}  a5 {[%clk 0:02:46]} 9. c4 {[%clk 0:02:55]}  a4 {[%clk 0:02:47]} 10. Nd2 {[%clk 0:02:54]}  c5 {[%clk 0:02:46]} 11. Ndf3 {[%clk 0:02:50]}  a3 {[%clk 0:02:44]} 12. Bc1 {[%clk 0:02:40]}  Ne4 {[%clk 0:02:43]} 13. Be3 {[%clk 0:02:34]}  f6 {[%clk 0:02:42]} 14. Nd3 {[%clk 0:02:27]}  dxc4 {[%clk 0:02:40]} 15. dxc5 {[%clk 0:02:24]}  Nd5 {[%clk 0:02:39]} 16. bxc4 {[%clk 0:02:17]}  Nxe3 {[%clk 0:02:36]} 17. fxe3 {[%clk 0:02:04]}  Nxc5 {[%clk 0:02:35]} 18. Qc2 {[%clk 0:02:05]}  e5 {[%clk 0:02:35]} 19. Nd2 {[%clk 0:01:43]}  Be6 {[%clk 0:02:32]} 20. Nb3 {[%clk 0:01:38]}  Na4 {[%clk 0:02:29]} 21. Bxb7 {[%clk 0:01:32]}  Rb8 {[%clk 0:02:23]} 22. Bc6 {[%clk 0:01:20]}  Nb6 {[%clk 0:02:21]} 23. Nbc5 {[%clk 0:01:18]}  Bf7 {[%clk 0:02:19]} 24. Bb5 {[%clk 0:00:55]}  Qc8 {[%clk 0:02:19]} 25. Na6 {[%clk 0:00:28]}  Ra8 {[%clk 0:02:13]} 26. c5 {[%clk 0:00:25]}  Nd5 {[%clk 0:02:13]} 27. Nab4 {[%clk 0:00:17]}  Nxe3 {[%clk 0:02:11]} 28. Qc3 {[%clk 0:00:16]}  Nxf1 {[%clk 0:02:11]} 29. Rxf1 {[%clk 0:00:14]}  Qe6 {[%clk 0:02:10]} 30. Bc6 {[%clk 0:00:15]}  Rad8 {[%clk 0:02:07]} 31. Qxa3 {[%clk 0:00:12]}  e4 {[%clk 0:02:01]} 32. Nf4 {[%clk 0:00:12]}  Bxc5+ {[%clk 0:02:00]} 33. Kg2 {[%clk 0:00:11]}  Bxb4 {[%clk 0:02:00]} 34. Nxe6 {[%clk 0:00:10]}  Bxa3 {[%clk 0:01:59]} 35. Nxf8 {[%clk 0:00:10]}  Kxf8 {[%clk 0:01:59]} 36. Bxe4 {[%clk 0:00:10]}  Bd5 {[%clk 0:01:59]} 37. Kf3 {[%clk 0:00:11]}  Bxe4+ {[%clk 0:01:59]} 38. Kxe4 {[%clk 0:00:10]}  Rd2 {[%clk 0:01:58]} 39. Rf3 {[%clk 0:00:10]}  Rxe2+ {[%clk 0:01:58]} 40. Kf5 {[%clk 0:00:11]}  Rxa2 {[%clk 0:01:58]} 41. Rb3 {[%clk 0:00:10]}  Kf7 {[%clk 0:01:59]} 42. Rb7+ {[%clk 0:00:11]}  Be7 {[%clk 0:01:57]} 43. h4 {[%clk 0:00:10]}  Ra4 {[%clk 0:01:56]} 44. h5 {[%clk 0:00:11]}  g6+ {[%clk 0:01:56]} 0-1


[Site "https://www.chess.com"]

[Event "Titled Tuesday Blitz January 10 Late 2023"]
[White "Makridis, Dimitrios"]
[Black "Krishnan, Varun"]
[WhiteFideId "25864475"]
[BlackFideId "5054508"]
[WhiteElo "2356"]
[BlackElo "2341"]
[Result "1-0"]
[Round "02"]
[TimeControl "180+2"]
[Date "2023.01.10"]
[WhiteClock "0:01:56"]
[BlackClock "0:00:15"]

1. c4 {[%clk 0:00:00]}  e5 {[%clk 0:00:00]} 2. Nc3 {[%clk 0:02:56]}  Nf6 {[%clk 0:02:56]} 3. g3 {[%clk 0:02:54]}  c6 {[%clk 0:02:55]} 4. Bg2 {[%clk 0:02:54]}  d5 {[%clk 0:02:53]} 5. cxd5 {[%clk 0:02:53]}  cxd5 {[%clk 0:02:52]} 6. e3 {[%clk 0:02:54]}  Nc6 {[%clk 0:02:53]} 7. d4 {[%clk 0:02:52]}  e4 {[%clk 0:02:52]} 8. f3 {[%clk 0:02:51]}  Bb4 {[%clk 0:02:51]} 9. fxe4 {[%clk 0:02:49]}  dxe4 {[%clk 0:02:40]} 10. Ne2 {[%clk 0:02:46]}  O-O {[%clk 0:02:37]} 11. O-O {[%clk 0:02:44]}  Re8 {[%clk 0:02:21]} 12. a3 {[%clk 0:02:43]}  Ba5 {[%clk 0:02:21]} 13. b4 {[%clk 0:02:38]}  Bc7 {[%clk 0:02:18]} 14. Bb2 {[%clk 0:02:33]}  Bg4 {[%clk 0:02:13]} 15. Qd2 {[%clk 0:02:34]}  a6 {[%clk 0:02:08]} 16. Rac1 {[%clk 0:02:30]}  Qd7 {[%clk 0:02:04]} 17. Rxf6 {[%clk 0:02:26]}  gxf6 {[%clk 0:01:34]} 18. Nxe4 {[%clk 0:02:21]}  Bd8 {[%clk 0:01:30]} 19. Nc5 {[%clk 0:02:21]}  Qe7 {[%clk 0:01:02]} 20. e4 {[%clk 0:02:14]}  Rc8 {[%clk 0:00:58]} 21. Nf4 {[%clk 0:02:07]}  a5 {[%clk 0:00:52]} 22. Nd5 {[%clk 0:02:04]}  Qf8 {[%clk 0:00:35]} 23. Nxb7 {[%clk 0:02:03]}  axb4 {[%clk 0:00:32]} 24. Nxd8 {[%clk 0:02:00]}  Rexd8 {[%clk 0:00:31]} 25. Nxf6+ {[%clk 0:01:59]}  Kh8 {[%clk 0:00:20]} 26. Nxg4 {[%clk 0:01:58]}  Nxd4 {[%clk 0:00:17]} 27. Bxd4+ {[%clk 0:01:58]}  Rxd4 {[%clk 0:00:17]} 28. Qxd4+ {[%clk 0:01:57]}  Kg8 {[%clk 0:00:16]} 29. Nh6+ {[%clk 0:01:58]}  Qxh6 {[%clk 0:00:15]} 30. Rxc8+ {[%clk 0:01:56]} 1-0


[Site "https://www.chess.com"]